fUST/lending_fUST_20250625
["ID","MTS","AMOUNT","RATE_DAILY","PERIOD"]
[367571197,1750863041468,-500.0,0.00016473,2]
[367571198,1750863041477,-500.0,0.00016473,2]
[367571201,1750863041486,-154.35643108,0.00016473,2]
[367571203,1750863041495,-500.0,0.00016473,2]
[367571205,1750863041504,-502.03328,0.00016473,2]
[367571207,1750863041514,-500.0,0.00016473,2]
[367571209,1750863041523,-621.38510807,0.00016473,2]
[367571211,1750863041532,-1025.01,0.00016542,3]
[367571213,1750863041542,-512.51,0.00016542,3]
[367571215,1750863041551,-256.25,0.00016542,3]
[367571217,1750863041560,-768.79,0.00016542,3]
[367571219,1750863041569,-500.0,0.00016548,2]
[367571221,1750863041578,-500.0,0.00016548,2]
[367571223,1750863041587,-500.0,0.00016549,2]
[367571225,1750863041597,-460.0,0.0001655,2]
[367571227,1750863041606,-396.47514336,0.0001655,2]
[367571229,1750863041615,-460.0,0.0001655,2]
[367571231,1750863041624,-460.0,0.0001655,2]
[367571233,1750863041634,-462.28306603,0.0001655,2]
[367571235,1750863041642,-460.0,0.0001655,2]
[367571237,1750863041651,-460.0,0.0001655,2]
[367571239,1750863041661,-500.0,0.0001655,2]
[367571241,1750863041674,-1524.16,0.0001655,2]
[367571243,1750863041683,-460.0,0.0001655,2]
[367571245,1750863041692,-460.0,0.0001655,2]
[367571247,1750863041701,-1690.11,0.0001655,2]
[367571249,1750863041711,-1203.65,0.0001655,2]
[367571251,1750863041721,-460.0,0.0001655,2]
[367571253,1750863041730,-562.77408241,0.0001655,2]
[367571255,1750863041740,-460.0,0.00016551,2]
[367571257,1750863041750,-460.0,0.00016551,2]
[367571259,1750863041759,-230.0,0.00016551,2]
[367571261,1750863041768,-461.06646507,0.00016551,2]
[367571263,1750863041779,-460.0,0.00016551,2]
[367571265,1750863041788,-460.83879382,0.00016551,2]
[367571267,1750863041798,-460.65133366,0.00016551,2]
[367571269,1750863041807,-461.47039422,0.00016551,2]
[367571271,1750863041816,-460.0,0.00016551,2]
[367571273,1750863041826,-460.0,0.00016551,2]
[367571275,1750863041835,-460.0,0.00016551,2]
[367571277,1750863041845,-460.0,0.00016551,2]
[367571279,1750863041854,-460.0,0.00016551,2]
[367571281,1750863041863,-460.0,0.00016551,2]
[367571283,1750863041873,-460.0,0.00016551,2]
[367571285,1750863041883,-514.0,0.00016551,2]
[367571287,1750863041892,-460.0,0.00016551,2]
[367571289,1750863041903,-460.0,0.00016551,2]
[367571291,1750863041912,-460.0,0.00016551,2]
[367571293,1750863041923,-460.0,0.00016551,2]
[367571296,1750863041932,-460.0,0.00016551,2]
[367571298,1750863041943,-460.0,0.00016551,2]
[367571300,1750863041953,-460.0,0.00016551,2]
[367571302,1750863041963,-460.0,0.00016551,2]
[367571304,1750863041972,-509.18,0.00016551,2]
[367571306,1750863041982,-460.0,0.00016551,2]
[367571307,1750863041991,-460.0,0.00016551,2]
[367571309,1750863042000,-460.0,0.00016552,2]
[367571311,1750863042009,-460.0,0.00016552,2]
[367571314,1750863042018,-171.02275559,0.00016552,2]
[367571316,1750863042027,-460.0,0.00016552,2]
[367571318,1750863042036,-156.76,0.00016552,2]
[367571319,1750863042046,-460.0,0.00016552,2]
[367571321,1750863042055,-460.0,0.00016552,2]
[367571323,1750863042064,-445.67075369,0.00016552,2]
[367571326,1750863042074,-460.0,0.00016552,2]
[367571328,1750863042083,-460.0,0.00016552,2]
[367571329,1750863042092,-460.0,0.00016552,2]
[367571331,1750863042101,-460.0,0.00016552,2]
[367571333,1750863042111,-460.0,0.00016552,2]
[367571336,1750863042120,-460.0,0.00016552,2]
[367571338,1750863042129,-460.0,0.00016552,2]
[367571340,1750863042138,-460.0,0.00016552,2]
[367571341,1750863042147,-460.0,0.00016552,2]
[367571343,1750863042157,-460.0,0.00016552,2]
[367571345,1750863042166,-460.0,0.00016552,2]
[367571348,1750863042176,-460.0,0.00016552,2]
[367571350,1750863042185,-460.0,0.00016552,2]
[367571352,1750863042195,-460.0,0.00016552,2]
[367571354,1750863042203,-460.0,0.00016552,2]
[367571356,1750863042212,-810.00020175,0.00016583,2]
[367571357,1750863042222,-207.4,0.00016657,2]
[367571360,1750863042232,-5000.0,0.00016657,2]
[367571361,1750863042241,-500.0,0.00016657,2]
[367571363,1750863042250,-500.0,0.00016657,2]
[367571366,1750863042259,-500.0,0.00016657,2]
[367571367,1750863042269,-500.0,0.00016657,2]
[367571369,1750863042278,-500.0,0.00016657,2]
[367571371,1750863042288,-500.0,0.00016657,2]
[367571374,1750863042297,-498.93331063,0.00016657,2]
[367571375,1750863042306,-151.0,0.00016657,2]
[367571377,1750863042315,-151.0,0.00016657,2]
[367571379,1750863042324,-151.0,0.00016657,2]
[367571381,1750863042333,-705.930024,0.00016657,2]
[367571383,1750863042342,-705.930024,0.00016657,2]
[367571385,1750863042351,-151.0,0.00016657,2]
[367571387,1750863042360,-151.0,0.00016657,2]
[367571389,1750863042369,-151.0,0.00016657,2]
[367571391,1750863042379,-151.0,0.00016657,2]
[367571393,1750863042389,-460.0,0.00016719,2]
[367571395,1750863042397,-240.00836222,0.00016719,2]
[367571397,1750863042406,-460.0,0.00016719,2]
[367571399,1750863042415,-460.0,0.00016719,2]
[367571401,1750863042424,-531.57,0.00016719,2]
[367571403,1750863042433,-460.0,0.00016719,2]
[367571405,1750863042442,-460.0,0.00016719,2]
[367571407,1750863042451,-460.0,0.00016719,2]
[367571409,1750863042460,-460.0,0.00016719,2]
[367571411,1750863042470,-1512.62,0.00016719,2]
[367571413,1750863042479,-460.0,0.00016719,2]
[367571415,1750863042489,-3197.88,0.00016719,2]
[367571417,1750863042498,-232.12,0.00016719,2]
[367571419,1750863042507,-460.0,0.00016719,2]
[367571422,1750863042518,-460.0,0.00016719,2]
[367571424,1750863042527,-460.0,0.0001672,2]
[367571426,1750863042536,-460.0,0.0001672,2]
[367571428,1750863042545,-460.0,0.0001672,2]
[367571430,1750863042554,-460.0,0.0001672,2]
[367571432,1750863042563,-215.63,0.0001672,2]
[367571434,1750863042573,-460.0,0.0001672,2]
[367571436,1750863042582,-291.92,0.0001672,2]
[367571438,1750863042591,-460.0,0.0001672,2]
[367571440,1750863042600,-460.0,0.0001672,2]
[367571442,1750863042609,-356.45344417,0.0001672,2]
[367571443,1750863042618,-460.0,0.0001672,2]
[367571446,1750863042628,-460.0,0.0001672,2]
[367571447,1750863042637,-460.0,0.0001672,2]
[367571450,1750863042646,-460.0,0.0001672,2]
[367571452,1750863042655,-460.0,0.0001672,2]
[367571454,1750863042666,-460.0,0.0001672,2]
[367571456,1750863042677,-460.0,0.0001672,2]
[367571458,1750863042687,-460.0,0.0001672,2]
[367571459,1750863042696,-460.0,0.0001672,2]
[367571462,1750863042707,-460.0,0.0001672,2]
[367571463,1750863042717,-460.0,0.0001672,2]
[367571465,1750863042726,-460.0,0.0001672,2]
[367571467,1750863042736,-460.0,0.0001672,2]
[367571470,1750863042747,-460.0,0.0001672,2]
[367571472,1750863042756,-460.0,0.0001672,2]
[367571474,1750863042767,-552.06,0.0001672,2]
[367571476,1750863042776,-490.45590058,0.0001672,2]
[367571478,1750863042785,-460.0,0.0001672,2]
[367571480,1750863042795,-460.0,0.0001672,2]
[367571482,1750863042804,-460.0,0.0001672,2]
[367571484,1750863042814,-2892.61,0.0001672,2]
[367571486,1750863042823,-460.0,0.0001672,2]
[367571488,1750863042832,-2442.54,0.0001672,2]
[367571490,1750863042841,-786.4,0.0001672,2]
[367571492,1750863042851,-460.0,0.0001672,2]
[367571494,1750863042860,-460.0,0.0001672,2]
[367571496,1750863042869,-376.0660889,0.0001672,2]
[367571498,1750863042878,-623.35,0.0001672,2]
[367571500,1750863042887,-460.0,0.0001672,2]
[367571502,1750863042897,-460.0,0.0001672,2]
[367571504,1750863042906,-903.34,0.0001672,2]
[367571506,1750863042917,-1515.63,0.0001672,2]
[367571508,1750863042926,-460.0,0.0001672,2]
[367571510,1750863042935,-460.0,0.0001672,2]
[367571512,1750863042945,-405.2032867,0.0001672,2]
[367571514,1750863042954,-576.36,0.0001672,2]
[367571516,1750863042963,-460.0,0.0001672,2]
[367571518,1750863042975,-460.0,0.0001672,2]
[367571520,1750863042984,-460.0,0.0001672,2]
[367571522,1750863042993,-460.0,0.0001672,2]
[367571524,1750863043002,-460.0,0.0001672,2]
[367571526,1750863043013,-460.0,0.0001672,2]
[367571528,1750863043022,-460.0,0.0001672,2]
[367571530,1750863043031,-944.02,0.0001672,2]
[367571532,1750863043040,-493.36421925,0.0001672,2]
[367571535,1750863043049,-460.0,0.0001672,2]
[367571537,1750863043058,-586.96,0.0001672,2]
[367571538,1750863043067,-460.0,0.0001672,2]
[367571541,1750863043077,-914.07,0.0001672,2]
[367571542,1750863043086,-3753.5,0.0001672,2]
[367571544,1750863043096,-460.0,0.0001672,2]
[367571546,1750863043105,-1518.03,0.0001672,2]
[367571549,1750863043114,-460.0,0.0001672,2]
[367571550,1750863043124,-633.03,0.0001672,2]
[367571552,1750863043133,-466.62,0.0001672,2]
[367571554,1750863043142,-206.27428381,0.0001672,2]
[367571556,1750863043151,-260.32985596,0.0001672,2]
[367571558,1750863043160,-460.0,0.0001672,2]
[367571560,1750863043170,-514.39,0.0001672,2]
[367571563,1750863043179,-467.73,0.0001672,2]
[367571566,1750863043189,-493.78,0.0001672,2]
[367571568,1750863043197,-460.0,0.0001672,2]
[367571570,1750863043207,-460.0,0.0001672,2]
[367571573,1750863043217,-460.0,0.0001672,2]
[367571575,1750863043227,-460.0,0.0001672,2]
[367571576,1750863043236,-460.0,0.0001672,2]
[367571579,1750863043245,-460.0,0.0001672,2]
[367571581,1750863043255,-460.0,0.0001672,2]
[367571582,1750863043264,-460.0,0.0001672,2]
[367571586,1750863043273,-460.0,0.00016721,2]
[367571587,1750863043283,-460.0,0.00016721,2]
[367571589,1750863043292,-460.0,0.00016721,2]
[367571591,1750863043301,-460.0,0.00016721,2]
[367571593,1750863043310,-729.21,0.00016721,2]
[367571595,1750863043319,-444.97428935,0.00016721,2]
[367571597,1750863043328,-460.0,0.00016721,2]
[367571599,1750863043338,-460.0,0.00016721,2]
[367571601,1750863043347,-460.0,0.00016721,2]
[367571603,1750863043357,-460.0,0.00016721,2]
[367571605,1750863043366,-446.19411269,0.00016721,2]
[367571607,1750863043375,-460.0,0.00016721,2]
[367571609,1750863043385,-466.91165954,0.00016721,2]
[367571611,1750863043394,-460.0,0.00016721,2]
[367571613,1750863043404,-460.0,0.00016721,2]
[367571615,1750863043413,-460.0,0.00016721,2]
[367571617,1750863043423,-460.0,0.00016721,2]
[367571619,1750863043432,-463.71919752,0.00016721,2]
[367571621,1750863043442,-500.0,0.00016721,2]
[367571623,1750863043451,-527.98,0.00016721,2]
[367571625,1750863043460,-460.0,0.00016721,2]
[367571627,1750863043472,-1027.12,0.00016721,2]
[367571629,1750863043482,-460.0,0.00016721,2]
[367571631,1750863043491,-821.95,0.00016721,2]
[367571633,1750863043500,-471.9,0.00016721,2]
[367571635,1750863043510,-460.0,0.00016721,2]
[367571637,1750863043519,-460.0,0.00016721,2]
[367571639,1750863043528,-460.0,0.00016721,2]
[367571641,1750863043537,-555.06,0.00016721,2]
[367571643,1750863043546,-460.0,0.00016721,2]
[367571645,1750863043556,-460.0,0.00016721,2]
[367571647,1750863043565,-460.0,0.00016721,2]
[367571649,1750863043575,-460.0,0.00016721,2]
[367571663,1750863043584,-460.0,0.00016721,2]
[367571664,1750863043707,-460.0,0.00016721,2]
[367571665,1750863043718,-374.54368063,0.00016721,2]
[367571666,1750863043728,-2046.28,0.00016721,2]
[367571667,1750863043737,-460.0,0.00016721,2]
[367571668,1750863043746,-7733.45,0.00016721,2]
[367571669,1750863043756,-460.0,0.00016721,2]
[367571670,1750863043765,-460.0,0.00016721,2]
[367571671,1750863043774,-928.39,0.00016721,2]
[367571673,1750863043784,-1923.49,0.00016721,2]
[367571675,1750863043793,-460.0,0.00016721,2]
[367571676,1750863043803,-460.0,0.00016721,2]
[367571677,1750863043812,-460.0,0.00016722,2]
[367571679,1750863043821,-408.46321594,0.00016722,2]
[367571680,1750863043830,-460.0,0.00016722,2]
[367571682,1750863043840,-460.0,0.00016722,2]
[367571684,1750863043850,-519.35,0.00016722,2]
[367571686,1750863043859,-460.0,0.00016722,2]
[367571688,1750863043868,-994.72,0.00016722,2]
[367571690,1750863043878,-460.0,0.00016722,2]
[367571692,1750863043888,-460.0,0.00016722,2]
[367571694,1750863043898,-5789.2,0.00016722,2]
[367571696,1750863043907,-460.0,0.00016722,2]
[367571698,1750863043916,-559.76,0.00016722,2]
[367571701,1750863043926,-828.26,0.00016722,2]
[367571704,1750863043935,-460.0,0.00016722,2]
[367571706,1750863043945,-460.0,0.00016722,2]
[367571707,1750863043954,-488.22,0.00016722,2]
[367571708,1750863043963,-673.51,0.00016722,2]
[367571709,1750863043975,-631.14,0.00016722,2]
[367571710,1750863043984,-2417.07,0.00016722,2]
[367571711,1750863043993,-460.0,0.00016722,2]
[367571712,1750863044003,-877.84,0.00016722,2]
[367571713,1750863044012,-971.87,0.00016722,2]
[367571714,1750863044021,-460.0,0.00016722,2]
[367571715,1750863044031,-2599.3,0.00016722,2]
[367571716,1750863044040,-460.0,0.00016723,2]
[367571717,1750863044050,-460.0,0.00016723,2]
[367571718,1750863044059,-460.0,0.00016723,2]
[367571719,1750863044069,-460.0,0.00016723,2]
[367571720,1750863044078,-460.0,0.00016723,2]
[367571721,1750863044087,-460.0,0.00016723,2]
[367571722,1750863044097,-460.0,0.00016723,2]
[367571723,1750863044106,-463.95646546,0.00016723,2]
[367571724,1750863044115,-549.72,0.00016723,2]
[367571725,1750863044125,-460.0,0.00016723,2]
[367571726,1750863044134,-460.0,0.00016723,2]
[367571727,1750863044143,-460.0,0.00016723,2]
[367571728,1750863044153,-460.0,0.00016723,2]
[367571730,1750863044162,-460.0,0.00016723,2]
[367571732,1750863044172,-460.0,0.00016723,2]
[367571734,1750863044183,-468.38877909,0.00016723,2]
[367571736,1750863044192,-708.84301822,0.00016728,2]
[367571738,1750863044202,-250.0,0.00016747,2]
[367571740,1750863044212,-321.0,0.00016815,2]
[367571742,1750863044224,-810.00020175,0.0001682,2]
[367571744,1750863044233,-465.07125014,0.00016824,2]
[367571746,1750863044242,-460.0,0.00016824,2]
[367571748,1750863044251,-460.0,0.00016824,2]
[367571750,1750863044261,-1524.16,0.00016824,2]
[367571752,1750863044270,-460.0,0.00016824,2]
[367571754,1750863044279,-460.0,0.00016824,2]
[367571756,1750863044288,-1690.11,0.00016824,2]
[367571758,1750863044297,-1203.65,0.00016824,2]
[367571760,1750863044306,-460.0,0.00016824,2]
[367571762,1750863044315,-463.52741001,0.00016825,2]
[367571764,1750863044324,-460.0,0.00016825,2]
[367571766,1750863044334,-151.0,0.00016825,2]
[367571768,1750863044343,-151.0,0.00016825,2]
[367571770,1750863044352,-460.0,0.00016825,2]
[367571772,1750863044361,-460.0,0.00016825,2]
[367571774,1750863044370,-375.50490881,0.00016825,2]
[367571776,1750863044379,-460.0,0.00016825,2]
[367571778,1750863044388,-460.0,0.00016825,2]
[367571780,1750863044397,-460.0,0.00016825,2]
[367571782,1750863044406,-460.0,0.00016825,2]
[367571784,1750863044415,-460.0,0.00016825,2]
[367571786,1750863044424,-510.08727142,0.00016826,2]
[367571788,1750863044433,-151.0,0.00016826,2]
[367571790,1750863044443,-151.0,0.00016826,2]
[367571792,1750863044452,-155.56,0.00016826,2]
[367571793,1750863044461,-460.0,0.00016826,2]
[367571795,1750863044470,-446.64522115,0.00016826,2]
[367571797,1750863044479,-444.42627129,0.00016826,2]
[367571799,1750863044489,-460.0,0.00016826,2]
[367571801,1750863044498,-460.0,0.00016826,2]
[367571804,1750863044508,-434.88,0.00016826,2]
[367571805,1750863044518,-460.0,0.00016826,2]
[367571808,1750863044527,-322.3,0.00016826,2]
[367571809,1750863044537,-460.0,0.00016826,2]
[367571811,1750863044546,-460.0,0.00016826,2]
[367571813,1750863044555,-460.0,0.00016826,2]
[367571815,1750863044564,-380.0,0.00016826,2]
[367571817,1750863044573,-460.0,0.00016826,2]
[367571819,1750863044583,-152.979448,0.00016827,2]
[367571821,1750863044592,-151.0,0.00016827,2]
[367571823,1750863044601,-705.930024,0.00016827,2]
[367571825,1750863044611,-705.930024,0.00016827,2]
[367571827,1750863044620,-357.395878,0.00016827,2]
[367571829,1750863044630,-357.395878,0.00016827,2]
[367571832,1750863044639,-151.0,0.00016827,2]
[367571834,1750863044648,-151.0,0.00016827,2]
[367571836,1750863044658,-151.0,0.00016827,2]
[367571837,1750863044668,-705.930024,0.00016829,2]
[367571840,1750863044679,-705.930024,0.00016829,2]
[367571841,1750863044688,-357.395878,0.00016865,2]
[367571843,1750863044697,-357.395878,0.00016865,2]
[367571845,1750863044707,-160.8028555,0.00016904,2]
[367571847,1750863044717,-153.0,0.00016904,2]
[367571849,1750863044727,-153.0,0.00016904,2]
[367571851,1750863044737,-153.0,0.00016904,2]
[367571854,1750863044747,-299.29873008,0.00016993,2]
[367571856,1750863044756,-460.0,0.00016993,2]
[367571858,1750863044767,-460.0,0.00016993,2]
[367571860,1750863044776,-531.57,0.00016993,2]
[367571862,1750863044785,-460.0,0.00016993,2]
[367571864,1750863044794,-460.0,0.00016993,2]
[367571866,1750863044803,-606.18,0.00016993,2]
[367571868,1750863044813,-344.74,0.00016993,2]
[367571870,1750863044822,-1512.62,0.00016993,2]
[367571872,1750863044832,-389.56501717,0.00016993,2]
[367571874,1750863044841,-3197.88,0.00016993,2]
[367571876,1750863044850,-460.0,0.00016993,2]
[367571877,1750863044859,-270.2874049,0.00016993,2]
[367571879,1750863044868,-460.0,0.00016994,2]
[367571881,1750863044878,-460.0,0.00016994,2]
[367571883,1750863044887,-460.0,0.00016994,2]
[367571885,1750863044896,-245.00676627,0.00016994,2]
[367571887,1750863044907,-460.0,0.00016994,2]
[367571889,1750863044916,-460.0,0.00016994,2]
[367571891,1750863044926,-521.35,0.00016994,2]
[367571893,1750863044934,-460.0,0.00016994,2]
[367571895,1750863044943,-460.0,0.00016994,2]
[367571897,1750863044953,-460.0,0.00016994,2]
[367571899,1750863044962,-460.0,0.00016994,2]
[367571901,1750863044972,-460.0,0.00016994,2]
[367571903,1750863044982,-280.78734991,0.00016994,2]
[367571905,1750863044991,-460.0,0.00016994,2]
[367571907,1750863045001,-460.0,0.00016994,2]
[367571909,1750863045010,-460.0,0.00016994,2]
[367571911,1750863045019,-460.0,0.00016994,2]
[367571913,1750863045028,-552.06,0.00016994,2]
[367571915,1750863045037,-460.0,0.00016994,2]
[367571917,1750863045047,-460.0,0.00016994,2]
[367571919,1750863045056,-460.0,0.00016994,2]
[367571921,1750863045065,-2892.61,0.00016994,2]
[367571923,1750863045075,-460.0,0.00016994,2]
[367571925,1750863045085,-2442.54,0.00016994,2]
[367571927,1750863045094,-786.4,0.00016994,2]
[367571929,1750863045103,-460.0,0.00016994,2]
[367571931,1750863045113,-211.73,0.00016994,2]
[367571933,1750863045122,-623.35,0.00016994,2]
[367571935,1750863045131,-533.82,0.00016994,2]
[367571937,1750863045141,-903.34,0.00016994,2]
[367571939,1750863045150,-460.0,0.00016994,2]
[367571941,1750863045160,-1515.63,0.00016994,2]
[367571943,1750863045169,-460.0,0.00016994,2]
[367571945,1750863045179,-460.0,0.00016994,2]
[367571947,1750863045189,-576.36,0.00016994,2]
[367571949,1750863045198,-460.0,0.00016994,2]
[367571952,1750863045208,-460.0,0.00016994,2]
[367571953,1750863045217,-460.0,0.00016994,2]
[367571956,1750863045233,-207.97,0.00016994,2]
[367571958,1750863045242,-460.0,0.00016994,2]
[367571959,1750863045252,-460.0,0.00016994,2]
[367571961,1750863045262,-460.0,0.00016994,2]
[367571964,1750863045271,-944.02,0.00016994,2]
[367571965,1750863045281,-460.0,0.00016994,2]
[367571967,1750863045291,-586.96,0.00016994,2]
[367571969,1750863045300,-356.84,0.00016994,2]
[367571972,1750863045310,-914.07,0.00016994,2]
[367571974,1750863045319,-3753.5,0.00016994,2]
[367571975,1750863045329,-418.75110519,0.00016994,2]
[367571977,1750863045339,-460.0,0.00016994,2]
[367571979,1750863045348,-1518.03,0.00016994,2]
[367571980,1750863045358,-633.03,0.00016994,2]
[367571982,1750863045367,-466.62,0.00016994,2]
[367571984,1750863045376,-460.0,0.00016994,2]
[367571986,1750863045385,-467.73,0.00016994,2]
[367571988,1750863045394,-493.78,0.00016994,2]
[367571990,1750863045404,-460.0,0.00016994,2]
[367571992,1750863045414,-460.0,0.00016994,2]
[367571994,1750863045422,-460.0,0.00016994,2]
[367571996,1750863045432,-358.81,0.00016994,2]
[367571998,1750863045441,-460.0,0.00016994,2]
[367572000,1750863045450,-460.0,0.00016994,2]
[367572002,1750863045459,-460.0,0.00016994,2]
[367572004,1750863045471,-460.0,0.00016994,2]
[367572006,1750863045480,-460.0,0.00016995,2]
[367572008,1750863045489,-300.1814504,0.00016995,2]
[367572010,1750863045498,-428.21,0.00016995,2]
[367572012,1750863045507,-729.21,0.00016995,2]
[367572014,1750863045517,-460.0,0.00016995,2]
[367572016,1750863045526,-460.0,0.00016995,2]
[367572018,1750863045535,-426.30612537,0.00016995,2]
[367572020,1750863045544,-460.0,0.00016995,2]
[367572022,1750863045553,-460.0,0.00016995,2]
[367572024,1750863045563,-391.25217855,0.00016995,2]
[367572026,1750863045572,-527.98,0.00016995,2]
[367572028,1750863045582,-460.0,0.00016995,2]
[367572030,1750863045591,-1027.12,0.00016995,2]
[367572032,1750863045600,-218.69,0.00016995,2]
[367572034,1750863045610,-821.95,0.00016995,2]
[367572036,1750863045619,-460.0,0.00016995,2]
[367572038,1750863045629,-460.0,0.00016995,2]
[367572040,1750863045638,-460.0,0.00016995,2]
[367572042,1750863045648,-555.06,0.00016995,2]
[367572044,1750863045657,-556.62,0.00016995,2]
[367572046,1750863045670,-460.0,0.00016995,2]
[367572048,1750863045680,-460.0,0.00016995,2]
[367572050,1750863045689,-460.0,0.00016995,2]
[367572052,1750863045698,-137.58477591,0.00016995,2]
[367572082,1750863045974,-322.41522409,0.00016995,2]
[367572084,1750863045984,-4.78477591,0.00016995,2]
[367572086,1750863045995,-387.26873133,0.00016995,2]
[367572088,1750863046005,-2034.99621395,0.00016995,2]
[367572091,1750863046016,-11.28378605,0.00016995,2]
[367572094,1750863046034,-460.0,0.00016995,2]
[367572096,1750863046046,-307.7162373,0.00016995,2]
[367572119,1750863046254,-5627.78584053,0.00016995,2]
[367572130,1750863046358,-488.35615697,0.00016995,2]
[367572142,1750863046517,-460.0,0.00016449,2]
[367572144,1750863046527,-1309.5917652,0.00016995,2]
[367572146,1750863046538,-515.48,0.00016995,2]
[367572148,1750863046547,-460.0,0.00016995,2]
[367572150,1750863046557,-928.39,0.00016995,2]
[367572152,1750863046566,-1923.49,0.00016995,2]
[367572155,1750863046575,-460.0,0.00016995,2]
[367572156,1750863046585,-460.0,0.00016996,2]
[367572159,1750863046594,-994.72,0.00016996,2]
[367572161,1750863046604,-460.0,0.00016996,2]
[367572163,1750863046615,-460.0,0.00016996,2]
[367572165,1750863046625,-460.0,0.00016996,2]
[367572167,1750863046634,-559.76,0.00016996,2]
[367572169,1750863046643,-828.26,0.00016996,2]
[367572171,1750863046656,-460.0,0.00016996,2]
[367572173,1750863046667,-460.0,0.00016996,2]
[367572175,1750863046680,-673.51,0.00016996,2]
[367572177,1750863046690,-631.14,0.00016996,2]
[367572179,1750863046699,-2417.07,0.00016996,2]
[367572182,1750863046711,-460.0,0.00016996,2]
[367572184,1750863046721,-877.84,0.00016996,2]
[367572186,1750863046731,-151.0,0.00016996,2]
[367572188,1750863046740,-971.87,0.00016996,2]
[367572190,1750863046751,-460.0,0.00016996,2]
[367572192,1750863046760,-2599.3,0.00016996,2]
[367572194,1750863046770,-460.0,0.00016997,2]
[367572196,1750863046779,-460.0,0.00016997,2]
[367572198,1750863046790,-460.0,0.00016997,2]
[367572199,1750863046799,-549.72,0.00016997,2]
[367572202,1750863046808,-460.0,0.00016997,2]
[367572204,1750863046818,-460.0,0.00016997,2]
[367572206,1750863046828,-460.0,0.00016997,2]
[367572208,1750863046838,-460.0,0.00016997,2]
[367572210,1750863046848,-460.0,0.00016997,2]
[367572212,1750863046857,-460.0,0.00016997,2]
[367572214,1750863046867,-398.0,0.00017016,2]
[367572216,1750863046877,-1000.0,0.00017021,2]
[367572218,1750863046886,-1000.0,0.00017021,2]
[367572220,1750863046895,-1000.0,0.00017021,2]
[367572222,1750863046905,-500.8586686,0.00017021,2]
[367572224,1750863046914,-500.0,0.00017021,2]
[367572226,1750863046923,-1000.0,0.00017021,2]
[367572228,1750863046933,-1000.0,0.00017021,2]
[367572230,1750863046943,-500.0,0.00017021,2]
[367572232,1750863046952,-1000.0,0.00017021,2]
[367572234,1750863046962,-1000.0,0.00017021,2]
[367572236,1750863046971,-928.52617537,0.00017021,2]
[367572238,1750863046981,-1000.0,0.00017021,2]
[367572240,1750863046991,-810.00020175,0.00017056,2]
[367572242,1750863047001,-460.0,0.00017098,2]
[367572244,1750863047011,-151.0,0.00017098,2]
[367572246,1750863047020,-252.360778,0.00017098,2]
[367572248,1750863047031,-1524.16,0.00017098,2]
[367572250,1750863047040,-460.0,0.00017098,2]